fUSD/lending_fUSD_20240327
["ID","MTS","AMOUNT","RATE_DAILY","PERIOD"]
[320733587,1711539120724,-587.11,0.00058082,120]
[320733588,1711539120737,-500.0,0.00058082,120]
[320733589,1711539120746,-500.0,0.00058082,120]
[320733590,1711539120758,-2128.3,0.00058082,120]
[320733591,1711539120767,-500.0,0.00058082,120]
[320733592,1711539120777,-500.0,0.00058082,120]
[320733593,1711539120787,-961.96,0.00058082,120]
[320733594,1711539120798,-792.02,0.00058082,120]
[320733595,1711539120808,-613.31,0.00058082,120]
[320733596,1711539120818,-1258.8,0.00058082,120]
[320733597,1711539120827,-931.2,0.00058082,120]
[320733598,1711539120836,-663.5,0.00058082,120]
[320733599,1711539120846,-500.0,0.00058082,120]
[320733600,1711539120856,-1126.29,0.00058082,120]
[320733601,1711539120865,-905.93,0.00058082,120]
[320733602,1711539120875,-596.37,0.00058082,120]
[320733603,1711539120885,-399.5,0.00058082,120]
[320733604,1711539120894,-1145.15,0.00058082,120]
[320733605,1711539120906,-1047.43,0.00058082,120]
[320733606,1711539120915,-1079.19,0.00058082,120]
[320733607,1711539120925,-232.6645678,0.00058082,120]
[320733608,1711539120934,-500.0,0.00058082,120]
[320733609,1711539120943,-500.0,0.00058082,120]
[320733610,1711539120953,-1050.1,0.00058082,120]
[320733611,1711539120962,-668.88,0.00058082,120]
[320733612,1711539120972,-798.22,0.00058082,120]
[320733613,1711539120985,-865.88,0.00058082,120]
[320733614,1711539120995,-500.0,0.00058082,120]
[320733615,1711539121006,-500.0,0.00058082,120]
[320733616,1711539121015,-698.77,0.00058082,120]
[320733617,1711539121025,-805.48,0.00058082,120]
[320733618,1711539121034,-895.29,0.00058082,120]
[320733619,1711539121044,-2904.63,0.00058082,120]
[320733620,1711539121053,-575.0,0.00058082,120]
[320733621,1711539121062,-1059.6,0.00058082,120]
[320733622,1711539121072,-624.76,0.00058082,120]
[320733623,1711539121081,-566.16,0.00058082,120]
[320733624,1711539121090,-384.19,0.00058082,120]
[320733625,1711539121100,-596.27,0.00058082,120]
[320733626,1711539121109,-511.44,0.00058082,120]
[320733627,1711539121118,-670.39,0.00058082,120]
[320733628,1711539121128,-2461.83,0.00058082,120]
[320733629,1711539121137,-500.0,0.00058082,120]
[320733630,1711539121146,-1096.84,0.00058082,120]
[320733631,1711539121156,-730.57,0.00058082,120]
[320733632,1711539121165,-526.24,0.00058082,120]
[320733633,1711539121175,-813.47,0.00058082,120]
[320733634,1711539121184,-500.0,0.00058082,120]
[320733635,1711539121193,-982.22,0.00058082,120]
[320733636,1711539121203,-2323.15,0.00058082,120]
[320733637,1711539121213,-952.22,0.00058082,120]
[320733638,1711539121223,-1090.65,0.00058082,120]
[320733639,1711539121238,-2118.58,0.00058082,120]
[320733640,1711539121247,-819.74,0.00058082,120]
[320733641,1711539121256,-500.0,0.00058082,120]
[320733642,1711539121267,-500.0,0.00058082,120]
[320733643,1711539121277,-374.89284048,0.00058082,120]
[320733644,1711539121286,-1006.99,0.00058082,120]
[320733645,1711539121296,-680.58,0.00058082,120]
[320733646,1711539121306,-500.0,0.00058082,120]
[320733647,1711539121316,-2012.56,0.00058082,120]
[320733648,1711539121325,-525.09,0.00058082,120]
[320733649,1711539121335,-1027.05,0.00058082,120]
[320733650,1711539121349,-775.63,0.00058082,120]
[320733651,1711539121359,-909.15,0.00058082,120]
[320733652,1711539121369,-669.48,0.00058082,120]
[320733653,1711539121379,-2014.61,0.00058082,120]
[320733654,1711539121390,-613.39,0.00058082,30]
[320733655,1711539121401,-670.15,0.00058082,120]
[320733656,1711539121410,-613.0,0.00058082,120]
[320733657,1711539121421,-500.0,0.00058082,120]
[320733658,1711539121431,-741.01,0.00058082,120]
[320733659,1711539121441,-715.82,0.00058082,120]
[320733660,1711539121450,-693.91,0.00058082,120]
[320733661,1711539121459,-1436.63,0.00058082,120]
[320733662,1711539121469,-788.63,0.00058082,120]
[320733663,1711539121483,-852.33,0.00058082,120]
[320733664,1711539121493,-500.0,0.00058082,120]
[320733665,1711539121502,-608.04,0.00058082,120]
[320733666,1711539121512,-500.0,0.00058082,120]
[320733667,1711539121522,-632.68,0.00058082,120]
[320733668,1711539121531,-500.0,0.00058082,120]
[320733669,1711539121540,-524.62,0.00058082,120]
[320733670,1711539121550,-620.43,0.00058082,120]
[320733671,1711539121560,-818.9,0.00058082,120]
[320733672,1711539121569,-2063.63,0.00058082,120]
[320733673,1711539121579,-1004.28,0.00058082,120]
[320733674,1711539121589,-2011.71,0.00058082,120]
[320733675,1711539121599,-807.51,0.00058082,120]
[320733676,1711539121608,-500.0,0.00058082,120]
[320733677,1711539121618,-755.18,0.00058082,120]
[320733678,1711539121628,-763.33,0.00058082,120]
[320733679,1711539121637,-487.81,0.00058082,120]
[320733680,1711539121647,-842.7,0.00058082,120]
[320733681,1711539121658,-713.05,0.00058082,120]
[320733682,1711539121668,-2308.15,0.00058082,120]
[320733683,1711539121677,-500.0,0.00058082,120]
[320733684,1711539121687,-500.0,0.00058082,120]
[320733685,1711539121696,-676.12,0.00058082,120]
[320733686,1711539121705,-849.59,0.00058082,120]
[320733687,1711539121715,-677.22,0.00058082,120]
[320733688,1711539121724,-500.0,0.00058082,120]
[320733689,1711539121736,-800.48,0.00058082,120]
[320733690,1711539121746,-988.02,0.00058082,120]
[320733691,1711539121755,-571.88591626,0.00058082,120]
[320733692,1711539121764,-535.04,0.00058082,120]
[320733693,1711539121774,-930.48,0.00058082,120]
[320733694,1711539121784,-877.53,0.00058082,120]
[320733695,1711539121793,-2082.72,0.00058082,120]
[320733696,1711539121803,-520.53,0.00058082,120]
[320733697,1711539121960,-1016.45,0.00058082,120]
[320733698,1711539121971,-525.83,0.00058082,120]
[320733699,1711539121984,-500.0,0.00058082,120]
[320733700,1711539121994,-1436.62,0.00058082,120]
[320733701,1711539122004,-2558.6,0.00058082,120]
[320733702,1711539122014,-2044.63,0.00058082,120]
[320733703,1711539122023,-545.88,0.00058082,120]
[320733704,1711539122033,-783.0,0.00058082,120]
[320733705,1711539122043,-3085.25,0.00058082,120]
[320733706,1711539122053,-839.83,0.00058082,120]
[320733707,1711539122062,-735.26,0.00058082,120]
[320733708,1711539122072,-3173.89,0.00058082,120]
[320733709,1711539122082,-1365.01,0.00058082,120]
[320733710,1711539122092,-1347.96,0.00058082,120]
[320733711,1711539122102,-500.0,0.00058082,120]
[320733712,1711539122112,-5132.44,0.00058082,120]
[320733713,1711539122122,-558.52,0.00058082,120]
[320733714,1711539122132,-7133.78,0.00058082,120]
[320733715,1711539122142,-579.76,0.00058082,120]
[320733716,1711539122151,-500.0,0.00058082,120]
[320733717,1711539122161,-1944.43,0.00058082,120]
[320733718,1711539122171,-6097.44,0.00058082,120]
[320733719,1711539122180,-5109.09,0.00058082,120]
[320733720,1711539122190,-545.62,0.00058082,120]
[320733721,1711539122199,-663.4,0.00058082,120]
[320733722,1711539122209,-22670.34,0.00058082,120]
[320733723,1711539122218,-2453.89,0.00058082,120]
[320733724,1711539122229,-2612.82,0.00058082,120]
[320733725,1711539122244,-7956.37,0.00058082,120]
[320733726,1711539122254,-1096.81,0.00058082,120]
[320733727,1711539122263,-2520.37,0.00058082,120]
[320733728,1711539122276,-628.48,0.00058082,120]
[320733729,1711539122287,-1032.54,0.00058082,120]
[320733730,1711539122297,-500.0,0.00058082,120]
[320733731,1711539122307,-2884.81,0.00058082,120]
[320733732,1711539122317,-3753.0,0.00058082,120]
[320733733,1711539122327,-5025.57,0.00058082,120]
[320733734,1711539122337,-43977.12,0.00058082,120]
[320733735,1711539122347,-9397.34,0.00058082,120]
[320733736,1711539122358,-7954.08,0.00058082,120]
[320733737,1711539122368,-500.0,0.00058082,120]
[320733738,1711539122377,-832.53,0.00058082,120]
[320733739,1711539122387,-5423.8,0.00058082,120]
[320733740,1711539122397,-5589.81,0.00058082,120]
[320733741,1711539122407,-3477.52,0.00058082,120]
[320733742,1711539122420,-500.0,0.00058082,120]
[320733743,1711539122430,-3295.4,0.00058082,120]
[320733744,1711539122439,-500.0,0.00058082,120]
[320733745,1711539122449,-79143.13,0.00058082,120]
[320733746,1711539122459,-4233.1,0.00058082,120]
[320733747,1711539122469,-1554.43,0.00058082,120]
[320733748,1711539122481,-332.71252286,0.00058082,120]
[320733749,1711539122491,-1796.45,0.00058082,120]
[320733750,1711539122500,-21230.92,0.00058082,120]
[320733751,1711539122510,-1488.59,0.00058082,120]
[320733752,1711539122520,-1590.82,0.00058082,120]
[320733753,1711539122530,-4270.02,0.00058082,120]
[320733754,1711539122539,-1416.51,0.00058082,120]
[320733755,1711539122549,-1436.29,0.00058082,120]
[320733756,1711539122558,-500.0,0.00058082,120]
[320733757,1711539122568,-2733.23,0.00058082,120]
[320733758,1711539122578,-4828.26,0.00058082,120]
[320733759,1711539122587,-2699.02,0.00058082,120]
[320733760,1711539122597,-794.6,0.00058082,120]
[320733761,1711539122607,-4103.23,0.00058082,120]
[320733762,1711539122617,-2649.26,0.00058082,120]
[320733763,1711539122628,-500.0,0.00058082,120]
[320733764,1711539122637,-3406.52,0.00058082,120]
[320733765,1711539122647,-500.0,0.00058082,120]
[320733766,1711539122657,-1067.47,0.00058082,120]
[320733767,1711539122666,-1008.05,0.00058082,120]
[320733768,1711539122676,-532.43,0.00058082,120]
[320733769,1711539122686,-3326.63,0.00058082,120]
[320733770,1711539122695,-949.03,0.00058082,120]
[320733771,1711539122705,-13832.31,0.00058082,120]
[320733772,1711539122714,-5725.46,0.00058082,120]
[320733773,1711539122723,-500.0,0.00058082,120]
[320733774,1711539122735,-1080.08,0.00058082,120]
[320733775,1711539122744,-638.55,0.00058082,120]
[320733776,1711539122753,-532.1,0.00058082,120]
[320733777,1711539122764,-3178.59,0.00058082,120]
[320733778,1711539122774,-868.21,0.00058082,120]
[320733779,1711539122784,-1914.32,0.00058082,120]
[320733780,1711539122794,-5718.22,0.00058082,120]
[320733781,1711539122804,-1510.54,0.00058082,120]
[320733782,1711539122816,-6090.95,0.00058082,120]
[320733783,1711539122825,-2368.29,0.00058082,120]
[320733784,1711539122835,-1975.68,0.00058082,120]
[320733785,1711539122845,-2626.24,0.00058082,120]
[320733786,1711539122855,-826.27,0.00058082,120]
[320733787,1711539122864,-5971.8,0.00058082,120]
[320733788,1711539122874,-6306.66,0.00058082,120]
[320733789,1711539122884,-3897.67,0.00058082,120]
[320733790,1711539122894,-3796.34,0.00058082,120]
[320733791,1711539122903,-2196.71,0.00058082,120]
[320733792,1711539122913,-1053.73,0.00058082,120]
[320733793,1711539122923,-500.0,0.00058082,7]
[320733794,1711539122932,-2509.66,0.00058082,120]
[320733795,1711539122941,-500.0,0.00058082,120]
[320733796,1711539122951,-2090.88,0.00058082,120]
[320733797,1711539122960,-3728.83,0.00058082,120]
[320733798,1711539122970,-14051.88,0.00058082,120]
[320733799,1711539122979,-5336.71,0.00058082,120]
[320733800,1711539122993,-6046.1,0.00058082,120]
[320733801,1711539123002,-1400.16,0.00058082,120]
[320733802,1711539123011,-1020.49,0.00058082,120]
[320733803,1711539123020,-6749.09,0.00058082,120]
[320733804,1711539123030,-3525.02,0.00058082,120]
[320733805,1711539123039,-9670.8,0.00058082,120]
[320733806,1711539123048,-2244.9,0.00058082,120]
[320733807,1711539123058,-4278.93,0.00058082,120]
[320733808,1711539123068,-500.0,0.00058082,120]
[320733809,1711539123088,-5002.55,0.00058082,120]
[320733810,1711539123107,-500.0,0.00058082,120]
[320733811,1711539123128,-1319.68,0.00058082,120]
[320733812,1711539123150,-5599.22,0.00058082,120]
[320733813,1711539123167,-4145.52,0.00058082,120]
[320733814,1711539123186,-1033.96,0.00058082,120]
[320733815,1711539123203,-8690.1,0.00058082,120]
[320733816,1711539123224,-759.99,0.00058082,120]
[320733817,1711539123245,-3689.75,0.00058082,120]
[320733818,1711539123264,-938.28,0.00058082,120]
[320733819,1711539123289,-3289.32,0.00058082,120]
[320733820,1711539123305,-773.1,0.00058082,120]
[320733821,1711539123322,-8474.88,0.00058082,120]
[320733822,1711539123341,-670.41,0.00058082,120]
[320733823,1711539123355,-684.84,0.00058082,120]
[320733824,1711539123374,-991.15,0.00058082,120]
[320733825,1711539123389,-16950.66,0.00058082,120]
[320733826,1711539123406,-5480.38,0.00058082,120]
[320733827,1711539123422,-3421.26,0.00058082,120]
[320733828,1711539123437,-649.49,0.00058082,120]
[320733829,1711539123454,-1159.66,0.00058082,120]
[320733830,1711539123470,-2172.19,0.00058082,120]
[320733831,1711539123487,-2895.84,0.00058082,120]
[320733832,1711539123503,-20784.38,0.00058082,120]
[320733833,1711539123520,-2732.75,0.00058082,120]
[320733834,1711539123536,-17160.48,0.00058082,120]
[320733835,1711539123551,-4740.83,0.00058082,120]
[320733836,1711539123567,-886.33,0.00058082,120]
[320733837,1711539123582,-672.63,0.00058082,120]
[320733838,1711539123597,-6247.3,0.00058082,120]
[320733839,1711539123614,-5091.09,0.00058082,21]
[320733840,1711539123628,-500.0,0.00058082,120]
[320733841,1711539123644,-584.47,0.00058082,120]
[320733842,1711539123659,-8381.34,0.00058082,120]
[320733843,1711539123675,-2273.07,0.00058082,120]
[320733844,1711539123690,-4086.57,0.00058082,120]
[320733845,1711539123705,-2370.47,0.00058082,120]
[320733846,1711539123719,-19292.32,0.00058082,120]
[320733847,1711539123735,-2960.24,0.00058082,120]
[320733848,1711539123752,-1173.99,0.00058082,120]
[320733849,1711539123767,-500.0,0.00058082,120]
[320733850,1711539123783,-500.0,0.00058082,85]
[320733851,1711539123797,-2202.57,0.00058082,120]
[320733852,1711539123813,-12410.62,0.00058082,120]
[320733853,1711539123827,-3278.85,0.00058082,120]
[320733854,1711539123843,-8798.58,0.00058082,120]
[320733855,1711539123859,-876.94,0.00058082,120]
[320733856,1711539123874,-3583.19,0.00058082,120]
[320733857,1711539123888,-895.2,0.00058082,120]
[320733858,1711539123904,-500.0,0.00058082,120]
[320733859,1711539123920,-1845.88,0.00058082,120]
[320733860,1711539123936,-937.27,0.00058082,120]
[320733861,1711539123951,-1083.78,0.00058082,120]
[320733862,1711539123966,-3201.11,0.00058082,120]
[320733863,1711539123984,-2638.24,0.00058082,120]
[320733864,1711539124000,-1388.52,0.00058082,120]
[320733865,1711539124014,-4892.27,0.00058082,120]
[320733866,1711539124030,-2480.34,0.00058082,120]
[320733867,1711539124046,-1350.19,0.00058082,120]
[320733868,1711539124061,-3142.36,0.00058082,120]
[320733869,1711539124076,-2180.01,0.00058082,120]
[320733870,1711539124092,-1470.53,0.00058082,120]
[320733871,1711539124108,-500.0,0.00058082,120]
[320733872,1711539124123,-505.71,0.00058082,120]
[320733873,1711539124139,-1659.22,0.00058082,120]
[320733874,1711539124154,-8083.93,0.00058082,120]
[320733875,1711539124171,-500.0,0.00058082,120]
[320733876,1711539124186,-2931.63,0.00058082,120]
[320733877,1711539124201,-2901.36,0.00058082,120]
[320733878,1711539124216,-541.86,0.00058082,120]
[320733879,1711539124234,-4166.77,0.00058082,120]
[320733880,1711539124249,-3516.57,0.00058082,120]
[320733881,1711539124265,-10990.32,0.00058082,120]
[320733882,1711539124283,-1139.26,0.00058082,120]
[320733883,1711539124299,-686.73,0.00058082,120]
[320733884,1711539124314,-1716.32,0.00058082,120]
[320733885,1711539124330,-500.0,0.00058082,120]
[320733886,1711539124346,-604.0,0.00058088,7]
[320733887,1711539124361,-190.24451948,0.0005811,120]
[320733888,1711539124376,-15142.0,0.00058115,4]
[320733889,1711539124393,-162.12929693,0.00058173,120]
[320733890,1711539124409,-158.0359404,0.0005818,120]
[320733891,1711539124424,-158.12704685,0.00058185,120]
[320733892,1711539124441,-190.24451948,0.0005819,120]
[320733893,1711539124456,-9100.250636,0.00058235,30]
[320733894,1711539124471,-14879.248352,0.00058235,30]
[320733895,1711539124489,-190.24451948,0.00058258,120]
[320733896,1711539124505,-1794.44147586,0.00058335,7]
[320733897,1711539124521,-288.03383965,0.00058335,7]
[320733898,1711539124537,-224.0,0.00058342,30]
[320733899,1711539124553,-2000.0,0.00058356,120]
[320733900,1711539124570,-895.23,0.00058356,120]
[320733901,1711539124586,-575.28,0.00058356,120]
[320733902,1711539124602,-500.0,0.00058356,120]
[320733903,1711539124618,-500.0,0.00058356,120]
[320733904,1711539124634,-563.96,0.00058356,120]
[320733905,1711539124650,-500.0,0.00058356,120]
[320733906,1711539124666,-500.0,0.00058356,120]
[320733907,1711539124680,-500.0,0.00058356,120]
[320733908,1711539124696,-500.0,0.00058356,120]
[320733909,1711539124714,-976.2,0.00058356,120]
[320733910,1711539124735,-500.0,0.00058356,120]
[320733911,1711539124752,-531.34,0.00058356,120]
[320733912,1711539124766,-500.0,0.00058356,120]
[320733913,1711539124781,-575.24,0.00058356,120]
[320733914,1711539124796,-503.38,0.00058356,120]
[320733915,1711539124812,-500.0,0.00058356,120]
[320733916,1711539124827,-544.36,0.00058356,120]
[320733917,1711539124843,-656.62,0.00058356,120]
[320733918,1711539124858,-786.05,0.00058356,120]
[320733919,1711539124872,-1108.32,0.00058356,120]
[320733920,1711539125118,-500.0,0.00058356,120]
[320733921,1711539125128,-582.28,0.00058356,120]
[320733922,1711539125138,-500.0,0.00058356,120]
[320733923,1711539125147,-500.0,0.00058356,120]
[320733924,1711539125157,-500.0,0.00058356,120]
[320733925,1711539125166,-500.0,0.00058356,120]
[320733926,1711539125176,-500.0,0.00058356,120]
[320733927,1711539125185,-447.45196683,0.00058356,120]
[320733928,1711539125195,-500.0,0.00058356,120]
[320733929,1711539125205,-650.65,0.00058356,120]
[320733930,1711539125214,-666.49,0.00058356,120]
[320733931,1711539125225,-512.61,0.00058356,120]
[320733932,1711539125236,-500.0,0.00058356,120]
[320733933,1711539125245,-500.0,0.00058356,120]
[320733934,1711539125256,-610.66,0.00058356,120]
[320733935,1711539125268,-544.48,0.00058356,120]
[320733936,1711539125277,-500.0,0.00058356,120]
[320733937,1711539125288,-1264.52,0.00058356,120]
[320733938,1711539125298,-564.14,0.00058356,120]
[320733939,1711539125308,-617.82,0.00058356,120]
[320733940,1711539125318,-832.09,0.00058356,120]
[320733941,1711539125328,-921.37,0.00058356,120]
[320733942,1711539125338,-695.47,0.00058356,120]
[320733943,1711539125349,-1458.74,0.00058356,120]
[320733944,1711539125359,-597.38,0.00058356,120]
[320733945,1711539125369,-1146.87,0.00058356,120]
[320733946,1711539125380,-2719.96,0.00058356,120]
[320733947,1711539125389,-500.0,0.00058356,120]
[320733948,1711539125400,-1170.95,0.00058356,120]
[320733949,1711539125410,-1986.6,0.00058356,120]
[320733950,1711539125420,-884.38,0.00058356,120]
[320733951,1711539125430,-1057.95,0.00058356,120]
[320733952,1711539125439,-616.91,0.00058356,120]
[320733953,1711539125449,-533.04,0.00058356,120]
[320733954,1711539125459,-537.22,0.00058356,120]
[320733955,1711539125469,-702.45,0.00058356,120]
[320733956,1711539125479,-5471.51,0.00058356,120]
[320733957,1711539125491,-587.11,0.00058356,120]
[320733958,1711539125500,-516.17625351,0.00058356,120]
[320733959,1711539125510,-500.0,0.00058356,120]
[320733960,1711539125520,-2128.3,0.00058356,120]
[320733961,1711539125530,-500.0,0.00058356,120]
[320733962,1711539125540,-500.0,0.00058356,120]
[320733963,1711539125550,-961.96,0.00058356,120]
[320733964,1711539125559,-792.02,0.00058356,120]
[320733965,1711539125569,-613.31,0.00058356,120]
[320733966,1711539125579,-1258.8,0.00058356,120]
[320733967,1711539125589,-931.2,0.00058356,120]
[320733968,1711539125600,-663.5,0.00058356,120]
[320733969,1711539125610,-500.0,0.00058356,120]
[320733970,1711539125620,-1126.29,0.00058356,120]
[320733971,1711539125630,-905.93,0.00058356,120]
[320733972,1711539125640,-596.37,0.00058356,120]
[320733973,1711539125650,-1145.15,0.00058356,120]
[320733974,1711539125661,-1047.43,0.00058356,120]
[320733975,1711539125671,-1079.19,0.00058356,120]
[320733976,1711539125681,-151.0,0.00058356,120]
[320733977,1711539125691,-500.0,0.00058356,120]
[320733978,1711539125701,-500.0,0.00058356,120]
[320733979,1711539125710,-1050.1,0.00058356,120]
[320733980,1711539125720,-668.88,0.00058356,120]
[320733981,1711539125730,-351.41469084,0.00058356,120]
[320733982,1711539125740,-798.22,0.00058356,120]
[320733983,1711539125750,-865.88,0.00058356,120]
[320733984,1711539125759,-500.0,0.00058356,120]
[320733985,1711539125768,-500.0,0.00058356,120]
[320733986,1711539125778,-698.77,0.00058356,120]
[320733987,1711539125787,-805.48,0.00058356,120]
[320733988,1711539125796,-895.29,0.00058356,120]
[320733989,1711539125806,-2904.63,0.00058356,120]
[320733990,1711539125816,-575.0,0.00058356,120]
[320733991,1711539125825,-1059.6,0.00058356,120]
[320733992,1711539125834,-624.76,0.00058356,120]
[320733993,1711539125843,-566.16,0.00058356,120]
[320733994,1711539125853,-596.27,0.00058356,120]
[320733995,1711539125862,-511.44,0.00058356,120]
[320733996,1711539125872,-670.39,0.00058356,120]
[320733997,1711539125881,-2461.83,0.00058356,120]
[320733998,1711539125890,-500.0,0.00058356,120]
[320733999,1711539125900,-1096.84,0.00058356,120]
[320734000,1711539125910,-730.57,0.00058356,120]
[320734001,1711539125920,-526.24,0.00058356,120]
[320734002,1711539125929,-813.47,0.00058356,120]
[320734003,1711539125939,-500.0,0.00058356,120]
[320734004,1711539125949,-982.22,0.00058356,120]
[320734005,1711539125958,-2323.15,0.00058356,120]
[320734006,1711539125968,-952.22,0.00058356,120]
[320734007,1711539125978,-1090.65,0.00058356,120]
[320734008,1711539125989,-2118.58,0.00058356,120]
[320734009,1711539125998,-819.74,0.00058356,120]
[320734010,1711539126008,-500.0,0.00058356,120]
[320734011,1711539126017,-500.0,0.00058356,120]
[320734012,1711539126027,-1006.99,0.00058356,120]
[320734013,1711539126037,-680.58,0.00058356,120]
[320734014,1711539126046,-500.0,0.00058356,120]
[320734015,1711539126056,-2012.56,0.00058356,120]
[320734016,1711539126066,-525.09,0.00058356,120]
[320734017,1711539126075,-1027.05,0.00058356,120]
[320734018,1711539126085,-775.63,0.00058356,120]
[320734019,1711539126096,-909.15,0.00058356,120]
[320734020,1711539126106,-669.48,0.00058356,120]
[320734021,1711539126116,-2014.61,0.00058356,120]
[320734022,1711539126126,-613.39,0.00058356,30]
[320734023,1711539126136,-670.15,0.00058356,120]
[320734024,1711539126146,-613.0,0.00058356,120]
[320734025,1711539126155,-500.0,0.00058356,120]
[320734026,1711539126165,-741.01,0.00058356,120]
[320734027,1711539126174,-715.82,0.00058356,120]
[320734028,1711539126184,-693.91,0.00058356,120]
[320734029,1711539126194,-1436.63,0.00058356,120]
[320734030,1711539126203,-788.63,0.00058356,120]
[320734031,1711539126214,-852.33,0.00058356,120]
[320734032,1711539126223,-500.0,0.00058356,120]
[320734033,1711539126233,-608.04,0.00058356,120]
[320734034,1711539126243,-500.0,0.00058356,120]
[320734035,1711539126252,-632.68,0.00058356,120]
[320734036,1711539126263,-500.0,0.00058356,120]
[320734037,1711539126275,-524.62,0.00058356,120]
[320734038,1711539126285,-620.43,0.00058356,120]
[320734039,1711539126295,-818.9,0.00058356,120]
[320734040,1711539126305,-2063.63,0.00058356,120]
[320734041,1711539126315,-1004.28,0.00058356,120]
[320734042,1711539126325,-2011.71,0.00058356,120]
[320734043,1711539126335,-807.51,0.00058356,120]
[320734044,1711539126345,-500.0,0.00058356,120]
[320734045,1711539126356,-755.18,0.00058356,120]
[320734046,1711539126366,-763.33,0.00058356,120]
[320734047,1711539126376,-487.81,0.00058356,120]
[320734048,1711539126386,-842.7,0.00058356,120]
[320734049,1711539126396,-713.05,0.00058356,120]
[320734050,1711539126406,-2308.15,0.00058356,120]
[320734051,1711539126416,-500.0,0.00058356,120]
[320734052,1711539126426,-500.0,0.00058356,120]
[320734053,1711539126436,-676.12,0.00058356,120]
[320734054,1711539126446,-849.59,0.00058356,120]
[320734055,1711539126456,-677.22,0.00058356,120]
[320734056,1711539126466,-500.0,0.00058356,120]
[320734057,1711539126476,-800.48,0.00058356,120]
[320734058,1711539126487,-988.02,0.00058356,120]
[320734059,1711539126497,-535.04,0.00058356,120]
[320734060,1711539126507,-930.48,0.00058356,120]
[320734061,1711539126517,-877.53,0.00058356,120]
[320734062,1711539126527,-2082.72,0.00058356,120]
[320734063,1711539126537,-520.53,0.00058356,120]
[320734064,1711539126547,-1016.45,0.00058356,120]
[320734065,1711539126557,-525.83,0.00058356,120]
[320734066,1711539126567,-500.0,0.00058356,120]
[320734067,1711539126577,-1436.62,0.00058356,120]
[320734068,1711539126587,-2558.6,0.00058356,120]
[320734069,1711539126597,-2044.63,0.00058356,120]
[320734070,1711539126607,-545.88,0.00058356,120]
[320734071,1711539126617,-783.0,0.00058356,120]
[320734072,1711539126627,-3085.25,0.00058356,120]
[320734073,1711539126637,-839.83,0.00058356,120]
[320734074,1711539126647,-735.26,0.00058356,120]
[320734075,1711539126657,-3173.89,0.00058356,120]
[320734076,1711539126667,-1365.01,0.00058356,120]
[320734077,1711539126677,-1347.96,0.00058356,120]
[320734078,1711539126687,-500.0,0.00058356,120]
[320734079,1711539126697,-5132.44,0.00058356,120]
[320734080,1711539126706,-558.52,0.00058356,120]
[320734081,1711539126716,-7133.78,0.00058356,120]
[320734082,1711539126726,-579.76,0.00058356,120]
[320734083,1711539126736,-500.0,0.00058356,120]
[320734084,1711539126746,-1944.43,0.00058356,120]
[320734085,1711539126756,-6097.44,0.00058356,120]
[320734086,1711539126766,-5109.09,0.00058356,120]